fUST/lending_fUST_20250316
["ID","MTS","AMOUNT","RATE_DAILY","PERIOD"]
[356247930,1742137844672,-500.0,8.219e-05,2]
[356247931,1742137844682,-515.80500906,8.219e-05,2]
[356247932,1742137844691,-500.0,8.219e-05,2]
[356247933,1742137844701,-500.0,8.219e-05,2]
[356247934,1742137844710,-502.39149852,8.219e-05,2]
[356247935,1742137844720,-509.77819247,8.219e-05,2]
[356247937,1742137844730,-500.0,8.219e-05,2]
[356247939,1742137844740,-500.0,8.219e-05,2]
[356247941,1742137844749,-500.0,8.219e-05,2]
[356247943,1742137844758,-500.0,8.219e-05,2]
[356247945,1742137844768,-500.0,8.219e-05,2]
[356247947,1742137844777,-500.0,8.219e-05,2]
[356247948,1742137844787,-245.91447272,8.219e-05,2]
[356247949,1742137844796,-500.0,8.219e-05,2]
[356247950,1742137844806,-500.0,8.219e-05,2]
[356247951,1742137844816,-500.0,8.219e-05,2]
[356247952,1742137844825,-500.0,8.219e-05,2]
[356247953,1742137844835,-500.0,8.219e-05,2]
[356247954,1742137844845,-188.83664119,8.219e-05,2]
[356247955,1742137844855,-510.20801747,8.219e-05,2]
[356247956,1742137844865,-1875.54417584,8.219e-05,2]
[356247957,1742137844878,-834.43066656,8.219e-05,2]
[356247958,1742137844888,-500.0,8.219e-05,2]
[356247959,1742137844898,-500.0,8.219e-05,2]
[356247960,1742137844908,-500.0,8.219e-05,2]
[356247961,1742137844918,-500.0,8.219e-05,2]
[356247962,1742137844928,-500.0,8.219e-05,2]
[356247963,1742137844938,-500.0,8.219e-05,2]
[356247964,1742137844948,-500.0,8.219e-05,2]
[356247965,1742137844961,-501.1,8.219e-05,2]
[356247966,1742137844971,-500.0,8.219e-05,2]
[356247967,1742137844981,-500.0,8.219e-05,2]
[356247968,1742137844991,-500.0,8.219e-05,2]
[356247969,1742137845001,-500.0,8.219e-05,2]
[356247970,1742137845010,-500.0,8.219e-05,2]
[356247971,1742137845020,-508.48975147,8.219e-05,2]
[356247972,1742137845029,-500.0,8.219e-05,2]
[356247973,1742137845039,-623.35,8.219e-05,2]
[356247974,1742137845049,-500.0,8.219e-05,2]
[356247975,1742137845058,-500.0,8.219e-05,2]
[356247976,1742137845068,-507.21359382,8.219e-05,2]
[356247977,1742137845078,-500.0,8.219e-05,2]
[356247978,1742137845087,-500.0,8.219e-05,2]
[356247979,1742137845099,-536.02296281,8.219e-05,2]
[356247980,1742137845108,-500.0,8.219e-05,2]
[356247981,1742137845118,-500.0,8.219e-05,2]
[356247982,1742137845128,-500.0,8.219e-05,2]
[356247983,1742137845280,-500.0,8.219e-05,2]
[356247984,1742137845333,-500.0,8.219e-05,2]
[356247985,1742137845343,-505.22836091,8.219e-05,2]
[356247986,1742137845354,-503.96118429,8.219e-05,2]
[356247987,1742137845364,-506.54013844,8.219e-05,2]
[356247988,1742137845374,-500.0,8.219e-05,2]
[356247989,1742137845384,-500.0,8.219e-05,2]
[356247990,1742137845394,-162.57494799,8.219e-05,2]
[356247991,1742137845403,-507.26720121,8.219e-05,2]
[356247992,1742137845413,-500.36292088,8.219e-05,2]
[356247993,1742137845422,-629.94,8.219e-05,2]
[356247994,1742137845432,-500.0,8.219e-05,2]
[356247995,1742137845441,-500.0,8.219e-05,2]
[356247996,1742137845451,-500.0,8.219e-05,2]
[356247997,1742137845461,-500.0,8.219e-05,2]
[356247998,1742137845470,-500.0,8.219e-05,2]
[356247999,1742137845480,-290.49381172,8.219e-05,2]
[356248000,1742137845490,-500.0,8.219e-05,2]
[356248001,1742137845500,-509.17094978,8.219e-05,2]
[356248002,1742137845509,-1673.42,8.219e-05,2]
[356248003,1742137845521,-991.44,8.219e-05,2]
[356248004,1742137845530,-500.0,8.219e-05,2]
[356248005,1742137845540,-500.0,8.219e-05,2]
[356248006,1742137845549,-563.13,8.219e-05,2]
[356248007,1742137845559,-590.2,8.219e-05,2]
[356248008,1742137845569,-500.0,8.219e-05,2]
[356248009,1742137845578,-1197.48,8.219e-05,2]
[356248010,1742137845588,-500.0,8.219e-05,2]
[356248011,1742137845598,-612.11,8.219e-05,2]
[356248012,1742137845607,-500.0,8.219e-05,2]
[356248013,1742137845617,-158.15205041,8.219e-05,2]
[356248014,1742137845628,-500.0,8.219e-05,2]
[356248015,1742137845639,-3156.41,8.219e-05,2]
[356248016,1742137845648,-617.83906112,8.219e-05,2]
[356248018,1742137845659,-500.0,8.219e-05,2]
[356248019,1742137845669,-500.0,8.219e-05,2]
[356248020,1742137845678,-604.97802769,8.219e-05,2]
[356248021,1742137845687,-500.0,8.219e-05,2]
[356248023,1742137845697,-510.32627174,8.219e-05,2]
[356248025,1742137845707,-500.0,8.219e-05,2]
[356248027,1742137845716,-500.0,8.219e-05,2]
[356248029,1742137845727,-500.0,8.219e-05,2]
[356248030,1742137845737,-500.0,8.219e-05,2]
[356248031,1742137845747,-500.0,8.219e-05,2]
[356248032,1742137845756,-501.5,8.219e-05,2]
[356248033,1742137845766,-500.0,8.219e-05,2]
[356248034,1742137845776,-500.0,8.219e-05,2]
[356248035,1742137845786,-500.0,8.219e-05,2]
[356248036,1742137845796,-500.0,8.219e-05,2]
[356248037,1742137845805,-1082.86,8.219e-05,2]
[356248038,1742137845815,-500.0,8.219e-05,2]
[356248039,1742137845825,-500.0,8.219e-05,2]
[356248040,1742137845834,-511.15530106,8.219e-05,2]
[356248041,1742137845844,-500.0,8.219e-05,2]
[356248042,1742137845854,-500.0,8.219e-05,2]
[356248043,1742137845864,-500.0,8.219e-05,2]
[356248044,1742137845874,-500.0,8.219e-05,2]
[356248045,1742137845884,-500.0,8.219e-05,2]
[356248046,1742137845894,-500.0,8.219e-05,2]
[356248047,1742137845903,-589.81,8.219e-05,2]
[356248048,1742137845913,-500.0,8.219e-05,2]
[356248049,1742137845923,-500.0,8.219e-05,2]
[356248051,1742137845933,-500.0,8.219e-05,2]
[356248053,1742137845943,-500.0,8.219e-05,2]
[356248055,1742137845956,-500.0,8.219e-05,2]
[356248057,1742137845966,-500.0,8.219e-05,2]
[356248059,1742137845975,-2929.85,8.219e-05,2]
[356248061,1742137845985,-508.94224261,8.219e-05,2]
[356248063,1742137845995,-500.0,8.219e-05,2]
[356248065,1742137846004,-379.46144295,8.219e-05,2]
[356248067,1742137846014,-500.0,8.219e-05,2]
[356248069,1742137846024,-608.2,8.219e-05,2]
[356248071,1742137846034,-6115.28,8.219e-05,2]
[356248073,1742137846044,-500.0,8.219e-05,2]
[356248075,1742137846053,-500.0,8.219e-05,2]
[356248077,1742137846063,-500.0,8.219e-05,2]
[356248079,1742137846072,-500.0,8.219e-05,2]
[356248081,1742137846082,-500.0,8.219e-05,2]
[356248083,1742137846091,-500.0,8.219e-05,2]
[356248085,1742137846101,-500.0,8.219e-05,2]
[356248087,1742137846110,-500.0,8.219e-05,2]
[356248089,1742137846121,-500.0,8.219e-05,2]
[356248091,1742137846130,-500.0,8.219e-05,2]
[356248093,1742137846140,-500.0,8.219e-05,2]
[356248095,1742137846149,-500.0,8.219e-05,2]
[356248097,1742137846159,-500.0,8.219e-05,2]
[356248099,1742137846168,-500.0,8.219e-05,2]
[356248101,1742137846178,-500.0,8.219e-05,2]
[356248103,1742137846187,-500.0,8.219e-05,2]
[356248104,1742137846196,-205.29725151,8.219e-05,2]
[356248106,1742137846206,-500.0,8.219e-05,2]
[356248108,1742137846215,-500.0,8.219e-05,2]
[356248110,1742137846225,-500.0,8.219e-05,2]
[356248112,1742137846234,-500.0,8.219e-05,2]
[356248114,1742137846244,-473.40425042,8.219e-05,2]
[356248115,1742137846254,-500.0,8.219e-05,2]
[356248116,1742137846264,-4834.54,8.219e-05,2]
[356248117,1742137846273,-2277.46,8.219e-05,2]
[356248118,1742137846283,-500.0,8.219e-05,2]
[356248119,1742137846292,-919.35,8.219e-05,2]
[356248120,1742137846302,-500.0,8.219e-05,2]
[356248121,1742137846311,-500.0,8.219e-05,2]
[356248122,1742137846320,-831.85002942,8.219e-05,2]
[356248123,1742137846339,-471.10997058,8.219e-05,2]
[356248124,1742137846349,-500.0,8.219e-05,2]
[356248125,1742137846358,-500.0,8.219e-05,2]
[356248126,1742137846368,-508.22720029,8.219e-05,2]
[356248127,1742137846378,-500.0,8.219e-05,2]
[356248128,1742137846387,-500.0,8.219e-05,2]
[356248129,1742137846396,-500.0,8.219e-05,2]
[356248130,1742137846406,-500.0,8.219e-05,2]
[356248131,1742137846416,-2635.76,8.219e-05,2]
[356248132,1742137846425,-500.0,8.219e-05,2]
[356248133,1742137846435,-849.8,8.219e-05,2]
[356248134,1742137846444,-849.8,8.219e-05,2]
[356248135,1742137846453,-849.8,8.219e-05,2]
[356248136,1742137846463,-849.8,8.219e-05,2]
[356248137,1742137846472,-849.8,8.219e-05,2]
[356248138,1742137846482,-849.8,8.219e-05,2]
[356248139,1742137846491,-849.8,8.219e-05,2]
[356248140,1742137846501,-500.0,8.219e-05,2]
[356248141,1742137846510,-849.8,8.219e-05,2]
[356248142,1742137846520,-849.8,8.219e-05,2]
[356248143,1742137846529,-849.8,8.219e-05,2]
[356248144,1742137846539,-849.8,8.219e-05,2]
[356248145,1742137846550,-849.8,8.219e-05,2]
[356248146,1742137846559,-849.8,8.219e-05,2]
[356248147,1742137846568,-849.8,8.219e-05,2]
[356248148,1742137846578,-849.8,8.219e-05,2]
[356248149,1742137846587,-567.71758197,8.219e-05,2]
[356248150,1742137846597,-849.8,8.219e-05,2]
[356248151,1742137846606,-240.81972583,8.219e-05,2]
[356248152,1742137846616,-849.8,8.219e-05,2]
[356248153,1742137846625,-849.8,8.219e-05,2]
[356248154,1742137846636,-849.8,8.219e-05,2]
[356248155,1742137846646,-903.43,8.219e-05,2]
[356248156,1742137846655,-500.0,8.219e-05,2]
[356248157,1742137846665,-500.0,8.219e-05,2]
[356248158,1742137846674,-500.0,8.219e-05,2]
[356248159,1742137846684,-164.410709,8.219e-05,2]
[356248160,1742137846693,-500.0,8.219e-05,2]
[356248161,1742137846703,-500.0,8.219e-05,2]
[356248162,1742137846713,-515.41,8.219e-05,2]
[356248163,1742137846723,-500.0,8.219e-05,2]
[356248164,1742137846734,-2147.44,8.219e-05,2]
[356248165,1742137846745,-500.0,8.219e-05,2]
[356248166,1742137846755,-500.0,8.219e-05,2]
[356248167,1742137846764,-500.0,8.219e-05,2]
[356248168,1742137846774,-500.0,8.219e-05,2]
[356248169,1742137846784,-1000.0,8.219e-05,2]
[356248170,1742137846793,-1156.54,8.219e-05,2]
[356248171,1742137846803,-508.16056948,8.219e-05,2]
[356248172,1742137846813,-500.0,8.219e-05,2]
[356248173,1742137846822,-1925.67,8.219e-05,2]
[356248174,1742137846832,-500.0,8.219e-05,2]
[356248175,1742137846842,-508.99,8.219e-05,2]
[356248176,1742137846851,-500.0,8.219e-05,2]
[356248177,1742137846861,-533.74351079,8.219e-05,2]
[356248178,1742137846871,-505.72849759,8.219e-05,2]
[356248179,1742137846881,-142419.10727675,8.219e-05,2]
[356248180,1742137847295,-500.0,8.193e-05,2]
[356248181,1742137847305,-3630.0,8.219e-05,2]
[356248182,1742137847316,-4806.95272325,8.219e-05,2]
[356248183,1742137847326,-500.0,8.219e-05,2]
[356248184,1742137847335,-500.0,8.219e-05,2]
[356248185,1742137847345,-816.73,8.219e-05,2]
[356248186,1742137847354,-500.0,8.219e-05,2]
[356248187,1742137847364,-1174.34,8.219e-05,2]
[356248188,1742137847373,-500.0,8.219e-05,2]
[356248189,1742137847382,-500.0,8.219e-05,2]
[356248190,1742137847392,-500.0,8.219e-05,2]
[356248191,1742137847401,-500.0,8.219e-05,2]
[356248192,1742137847411,-500.0,8.219e-05,2]
[356248193,1742137847421,-500.0,8.219e-05,2]
[356248194,1742137847430,-525.86161135,8.219e-05,2]
[356248195,1742137847440,-500.0,8.219e-05,2]
[356248196,1742137847449,-500.0,8.219e-05,2]
[356248197,1742137847459,-2744.28,8.219e-05,2]
[356248198,1742137847468,-3229.38,8.219e-05,2]
[356248199,1742137847478,-1211.14,8.219e-05,2]
[356248200,1742137847487,-622.2,8.269e-05,2]
[356248201,1742137847496,-645.2214,8.324e-05,2]
[356248202,1742137847506,-849.8,8.378e-05,2]
[356248203,1742137847515,-849.8,8.378e-05,2]
[356248204,1742137847524,-849.8,8.378e-05,2]
[356248205,1742137847534,-849.8,8.378e-05,2]
[356248206,1742137847543,-849.85,8.378e-05,2]
[356248207,1742137847553,-669.0945918,8.379e-05,2]
[356248208,1742137847563,-1120.71477575,8.4e-05,2]
[356248209,1742137847573,-160.0,8.408e-05,2]
[356248210,1742137847583,-160.0,8.408e-05,2]
[356248211,1742137847593,-417.78412626,8.408e-05,2]
[356248212,1742137847603,-833.88055864,8.408e-05,2]
[356248213,1742137847613,-160.0,8.408e-05,2]
[356248214,1742137847622,-200.0,8.408e-05,2]
[356248215,1742137847632,-693.8510917,8.434e-05,2]
[356248216,1742137847642,-493.17446512,8.473e-05,2]
[356248217,1742137847654,-18551.43256739,8.48e-05,3]
[356248218,1742137847664,-50000.0,8.48e-05,3]
[356248219,1742137847673,-719.52358209,8.489e-05,2]
[356248220,1742137847682,-380.89091638,8.492e-05,2]
[356248221,1742137847692,-500.0,8.493e-05,2]
[356248222,1742137847701,-452.68,8.493e-05,2]
[356248223,1742137847711,-201.4,8.493e-05,2]
[356248224,1742137847720,-164.49,8.493e-05,2]
[356248225,1742137847729,-308.87,8.493e-05,2]
[356248226,1742137847739,-219.45,8.493e-05,2]
[356248227,1742137847756,-280.86,8.493e-05,2]
[356248228,1742137847765,-163.4,8.493e-05,2]
[356248229,1742137847775,-366.66,8.493e-05,2]
[356248230,1742137847785,-163.44,8.493e-05,2]
[356248231,1742137847795,-520.74,8.493e-05,2]
[356248232,1742137847804,-171.07,8.493e-05,2]
[356248233,1742137847813,-233.28,8.493e-05,2]
[356248234,1742137847823,-500.0,8.493e-05,2]
[356248235,1742137847833,-500.0,8.493e-05,2]
[356248236,1742137847843,-153.26,8.493e-05,2]
[356248237,1742137847852,-1673.42,8.493e-05,2]
[356248238,1742137847861,-991.44,8.493e-05,2]
[356248239,1742137847871,-1197.48,8.493e-05,2]
[356248240,1742137847881,-3156.41,8.493e-05,2]
[356248241,1742137847894,-391.26632429,8.493e-05,2]
[356248242,1742137847905,-500.0,8.493e-05,2]
[356248243,1742137847915,-1082.86,8.493e-05,2]
[356248244,1742137847924,-500.0,8.493e-05,2]
[356248245,1742137847934,-42.71010126,8.493e-05,2]
[356248246,1742137847948,-457.28989874,8.493e-05,2]
[356248247,1742137847960,-500.0,8.493e-05,2]
[356248248,1742137847970,-500.0,8.493e-05,2]
[356248249,1742137847980,-500.0,8.493e-05,2]
[356248250,1742137847991,-500.0,8.493e-05,2]
[356248251,1742137848001,-2929.85,8.493e-05,2]
[356248252,1742137848011,-500.0,8.493e-05,2]
[356248253,1742137848021,-608.2,8.493e-05,2]
[356248254,1742137848033,-6115.28,8.493e-05,2]
[356248255,1742137848043,-500.0,8.493e-05,2]
[356248256,1742137848054,-177.19,8.493e-05,2]
[356248257,1742137848064,-500.0,8.493e-05,2]
[356248258,1742137848075,-500.0,8.493e-05,2]
[356248259,1742137848085,-500.0,8.493e-05,2]
[356248260,1742137848096,-500.0,8.493e-05,2]
[356248261,1742137848106,-199.3,8.493e-05,2]
[356248262,1742137848116,-500.0,8.493e-05,2]
[356248263,1742137848127,-500.0,8.493e-05,2]
[356248264,1742137848136,-500.0,8.493e-05,2]
[356248265,1742137848150,-500.0,8.493e-05,2]
[356248266,1742137848161,-4834.54,8.493e-05,2]
[356248267,1742137848171,-2277.46,8.493e-05,2]
[356248268,1742137848181,-500.0,8.493e-05,2]
[356248269,1742137848191,-919.35,8.493e-05,2]
[356248270,1742137848201,-306.04019065,8.493e-05,2]
[356248271,1742137848211,-183.81507802,8.493e-05,2]
[356248272,1742137848221,-1302.96,8.493e-05,2]
[356248273,1742137848231,-500.0,8.493e-05,2]
[356248274,1742137848241,-600.57383775,8.493e-05,2]
[356248275,1742137848251,-2635.76,8.493e-05,2]
[356248276,1742137848262,-903.43,8.493e-05,2]
[356248277,1742137848272,-500.0,8.493e-05,2]
[356248278,1742137848282,-2147.44,8.493e-05,2]
[356248279,1742137848292,-500.0,8.493e-05,2]
[356248280,1742137848302,-500.0,8.493e-05,2]
[356248281,1742137848311,-500.0,8.493e-05,2]
[356248282,1742137848321,-1000.0,8.493e-05,2]
[356248283,1742137848331,-1156.54,8.493e-05,2]
[356248284,1742137848341,-500.0,8.493e-05,2]
[356248285,1742137848351,-1925.67,8.493e-05,2]
[356248286,1742137848361,-500.0,8.493e-05,2]
[356248287,1742137848371,-165.59,8.493e-05,2]
[356248288,1742137848381,-73063.85111842,8.493e-05,2]
[356248289,1742137848425,-18176.05780008,8.493e-05,2]
[356248290,1742138178692,-216.59164141,7.957e-05,2]
[356248291,1742138360873,-273.45116038,7.877e-05,2]
[356248292,1742138397369,152.58,0.000139,31]
[356248293,1742138397419,152.58,0.000139,31]
[356248294,1742138397477,152.58,0.000139,31]
[356248295,1742138397536,152.58,0.000139,31]
[356248296,1742138397602,152.58,0.000139,31]
[356248297,1742138397663,152.58,0.000139,31]
[356248298,1742138397727,152.58,0.000139,31]
[356248299,1742138397786,152.58,0.000139,31]
[356248300,1742138397849,152.58,0.000139,31]
[356248301,1742138397906,152.58,0.000139,31]
[356248302,1742138397975,152.58,0.000139,31]
[356248303,1742138398039,152.58,0.000139,31]
[356248304,1742138398083,152.58,0.000139,31]
[356248305,1742138398154,152.58,0.000139,31]
[356248306,1742138615175,-273.45116038,7.397e-05,2]
[356248307,1742138646596,-177.298009,7.396e-05,2]
[356248308,1742138707700,-227.53727826,7.396e-05,2]
[356248323,1742138764097,-219.05208396,7.188e-05,2]
[356248324,1742138767107,-30.94791604,7.188e-05,2]
[356248325,1742138767130,-122.71878128,7.323e-05,2]
[356248326,1742138774065,-150.0,7.25e-05,2]
[356248327,1742138793129,-183.1431957,7.25e-05,2]
[356248330,1742138827357,-170.24743234,7.25e-05,2]
[356248332,1742138847131,-4970.88546871,7.25e-05,2]
[356248333,1742138847155,-300.0,7.322e-05,2]
[356248334,1742138847177,-10640.12661423,7.323e-05,2]
[356248335,1742138847201,-500.0,7.396e-05,2]
[356248336,1742138847224,-500.0,7.396e-05,2]
[356248337,1742138847248,-318.10938464,7.396e-05,2]
[356248338,1742138847271,-24626.54883962,7.397e-05,2]
[356248339,1742138847295,-420.0,8.054e-05,2]
[356248340,1742138847315,-1000.06886045,8.118e-05,2]
[356248341,1742138847339,-421.25622313,8.119e-05,2]
[356248342,1742138847360,-600.0,8.214e-05,2]
[356248343,1742138847381,-461.37511505,8.218e-05,2]
[356248344,1742138847402,-500.0,8.219e-05,2]
[356248345,1742138847424,-500.0,8.219e-05,2]
[356248346,1742138847446,-500.0,8.219e-05,2]
[356248347,1742138847467,-500.0,8.219e-05,2]
[356248348,1742138847488,-500.0,8.219e-05,2]
[356248349,1742138847511,-500.0,8.219e-05,2]
[356248350,1742138847536,-194.6,8.219e-05,2]
[356248351,1742138847559,-500.0,8.219e-05,2]
[356248352,1742138847580,-500.0,8.219e-05,2]
[356248353,1742138847602,-168.79814241,8.219e-05,2]
[356248354,1742138847624,-2893.38,8.219e-05,2]
[356248355,1742138847646,-500.0,8.219e-05,2]
[356248356,1742138847669,-212.88703009,8.219e-05,2]
[356248357,1742138847691,-1194.38,8.219e-05,2]
[356248358,1742138847713,-221.84119029,8.219e-05,2]
[356248359,1742138847735,-500.0,8.219e-05,2]
[356248360,1742138847759,-992.62,8.219e-05,2]
[356248361,1742138847784,-500.0,8.219e-05,2]
[356248362,1742138847807,-2785.56,8.219e-05,2]
[356248363,1742138847831,-5605.67,8.219e-05,2]
[356248364,1742138847855,-500.0,8.219e-05,2]
[356248365,1742138847878,-546.05,8.219e-05,2]
[356248366,1742138847903,-557.52,8.219e-05,2]
[356248367,1742138847927,-500.0,8.219e-05,2]
[356248368,1742138847950,-500.0,8.219e-05,2]
[356248369,1742138847973,-283.72028485,8.219e-05,2]
[356248370,1742138847996,-500.0,8.219e-05,2]
[356248371,1742138848018,-1000.0,8.219e-05,2]
[356248372,1742138848041,-4431.66,8.219e-05,2]
[356248373,1742138848065,-500.0,8.219e-05,2]
[356248374,1742138848088,-2087.68,8.219e-05,2]
[356248375,1742138848111,-500.0,8.219e-05,2]
[356248376,1742138848134,-863.57,8.219e-05,2]
[356248377,1742138848156,-500.0,8.219e-05,2]
[356248378,1742138848179,-848.97,8.219e-05,2]
[356248379,1742138848203,-2446.79,8.219e-05,2]
[356248380,1742138848226,-1527.54,8.219e-05,2]
[356248381,1742138848250,-500.0,8.219e-05,2]
[356248382,1742138848273,-1765.2,8.219e-05,2]
[356248383,1742138848295,-448.35,8.219e-05,2]
[356248384,1742138848318,-500.0,8.219e-05,2]
[356248385,1742138848340,-1060.16,8.219e-05,2]
[356248386,1742138848362,-782.7,8.219e-05,2]
[356248387,1742138848383,-37190.83942369,8.219e-05,2]
[356248388,1742138848461,-101858.18699314,8.219e-05,2]
[356248399,1742139005719,152.6,0.000139,31]
[356248400,1742139005782,152.6,0.000139,31]
[356248401,1742139005839,152.6,0.000139,31]
[356248402,1742139005912,152.6,0.000139,31]
[356248403,1742139005968,152.6,0.000139,31]
[356248404,1742139006021,152.6,0.000139,31]
[356248405,1742139006095,152.6,0.000139,31]
[356248464,1742139032734,-300.0,7.323e-05,2]
[356248466,1742139032744,-17678.4496519,7.324e-05,2]
[356248468,1742139032755,-2551.7564578,7.431e-05,2]
[356248470,1742139032764,-1000.0,8e-05,2]
[356248472,1742139032774,-291.0,8.055e-05,2]
[356248475,1742139032783,-322.96258053,8.218e-05,2]
[356248478,1742139032793,-1181.51,8.219e-05,2]
[356248480,1742139032802,-500.0,8.219e-05,2]
[356248482,1742139032811,-500.0,8.219e-05,2]
[356248485,1742139032821,-3094.82,8.219e-05,2]
[356248488,1742139032831,-908.82,8.219e-05,2]
[356248490,1742139032840,-500.0,8.219e-05,2]
[356248494,1742139032849,-1533.97,8.219e-05,2]
[356248496,1742139032859,-1097.69,8.219e-05,2]
[356248498,1742139032869,-370.8095377,8.219e-05,2]
[356248921,1742139038356,-129.1904623,8.219e-05,2]
[356248922,1742139038366,-2772.82,8.219e-05,2]
[356248923,1742139038377,-500.0,8.219e-05,2]
[356248924,1742139038387,-500.0,8.219e-05,2]
[356248925,1742139038397,-951.26,8.219e-05,2]
[356248926,1742139038407,-500.0,8.219e-05,2]
[356248927,1742139038416,-461.65360905,8.219e-05,2]
[356248928,1742139038482,-38.34639095,8.219e-05,2]
[356248930,1742139038491,-500.0,8.219e-05,2]
[356248931,1742139038501,-120.55901185,8.219e-05,2]
[356248945,1742139041158,-2548.94098815,8.219e-05,2]
[356248946,1742139041169,-500.0,8.219e-05,2]
[356248947,1742139041179,-500.0,8.219e-05,2]
[356248948,1742139041189,-534.29,8.219e-05,2]
[356248949,1742139041200,-5372.1,8.219e-05,2]
[356248950,1742139041211,-523.3,8.219e-05,2]
[356248951,1742139041221,-500.0,8.219e-05,2]
[356248952,1742139041232,-2000.69,8.219e-05,2]
[356248953,1742139041242,-500.0,8.219e-05,2]
[356248955,1742139041252,-500.0,8.219e-05,2]
[356248956,1742139041261,-394.99640931,8.219e-05,2]
[356248957,1742139041403,-0.00136125,8.219e-05,2]
[356248967,1742139043652,-105.00222944,8.219e-05,2]
[356248968,1742139043662,-500.0,8.219e-05,2]
[356248969,1742139043672,-827.59,8.219e-05,2]
[356248970,1742139043682,-4247.01,8.219e-05,2]
[356248971,1742139043691,-500.0,8.219e-05,2]
[356248972,1742139043702,-500.0,8.219e-05,2]
[356248973,1742139043711,-813.6,8.219e-05,2]
[356248974,1742139043722,-2344.84,8.219e-05,2]
[356248975,1742139043731,-1735.67,8.219e-05,2]
[356248976,1742139043740,-1973.08,8.219e-05,2]
[356248977,1742139043750,-750.08,8.219e-05,2]
[356248978,1742139043760,-572.68306786,8.219e-05,2]
[356248979,1742139043769,-1015.99,8.219e-05,2]
[356248980,1742139043779,-476.7,8.219e-05,2]
[356248981,1742139043788,-79747.67837054,8.219e-05,2]
[356249114,1742139046785,-55245.16162946,8.219e-05,2]
[356249116,1742139046795,-2670.77,8.219e-05,2]
[356249118,1742139046804,-1125.41,8.219e-05,2]
[356249120,1742139046814,-171.61,8.219e-05,2]
[356249122,1742139046823,-1132.28,8.219e-05,2]
[356249125,1742139046833,-500.0,8.219e-05,2]
[356249127,1742139046843,-171.098,8.25e-05,2]
[356249130,1742139046852,-160.0,8.342e-05,2]
[356249131,1742139046862,-160.0,8.353e-05,2]
[356249132,1742139046871,-417.78412626,8.353e-05,2]
[356249134,1742139046881,-833.88055864,8.353e-05,2]
[356249137,1742139046890,-862.89880958,8.353e-05,2]
[356249139,1742139046900,-160.0,8.353e-05,2]
[356249142,1742139046910,-600.0,8.488e-05,2]
[356249145,1742139046919,-2607.43498213,8.49e-05,2]
[356249148,1742139046928,-190.44545819,8.492e-05,2]
[356249151,1742139046938,-1194.38,8.493e-05,2]
[356249154,1742139046947,-325.50693587,8.493e-05,2]
[356249158,1742139046960,-174.49306413,8.493e-05,2]
[356249161,1742139046970,-667.04546743,8.493e-05,2]
[356249164,1742139046988,-967.44021676,8.493e-05,2]
[356249173,1742139326579,443.3887611,7.362e-05,2]
[356249174,1742139532663,173.785802,7.395e-05,2]
[356249175,1742139612757,152.62,0.000139,31]
[356249176,1742139612798,152.62,0.000139,31]
[356249177,1742139612834,152.62,0.000139,31]
[356249178,1742139612871,152.62,0.000139,31]
[356249179,1742139612901,152.62,0.000139,31]
[356249180,1742139612933,152.62,0.000139,31]
[356249181,1742139612978,152.62,0.000139,31]
[356249182,1742139782846,24900.0,7.397e-05,2]
[356249188,1742139910638,250.0,7.301e-05,2]
[356249189,1742139945125,15611.3933656,7.306e-05,2]
[356249190,1742140051150,-396.5133959,8.132e-05,2]
[356249191,1742140051173,-600.0,8.214e-05,2]
[356249192,1742140051196,-300.0,8.217e-05,2]
[356249193,1742140051217,-241.79505794,8.218e-05,2]
[356249194,1742140051241,-500.0,8.218e-05,2]
[356249195,1742140051265,-500.0,8.218e-05,2]
[356249196,1742140051288,-500.0,8.218e-05,2]
[356249197,1742140051313,-500.0,8.218e-05,2]
[356249198,1742140051337,-250.0,8.218e-05,2]